bitfinex-derivatives/quotes_SOLF0:USTF0_20241203
["timestamp","ask_amount","ask_price","bid_price","bid_amount"]
[1733242380906,2.6667,224.73,224.58,2.2257]
[1733242380907,3.32,224.69,224.58,2.2257]
[1733242381110,3.32,224.69,224.57,10.49177951]
[1733242381315,3.32,224.69,224.51,11.4962083]
[1733242381316,3.32,224.69,224.58,1.11397045]
[1733242381515,3.32,224.69,224.58,2.2258]
[1733242381813,3.32,224.69,224.59,1.11396265]
[1733242382026,3.32,224.69,224.57,10.49177951]
[1733242382315,2.2249,224.67,224.58,1.11390048]
[1733242382515,2.2249,224.67,224.59,1.11390048]
[1733242382717,2.225,224.66,224.6,2.2255]
[1733242383013,10.49177951,224.67,224.54,10.49177951]
[1733242383221,10.49177951,224.67,224.55,1.1140181]
[1733242383414,10.49177951,224.67,224.54,10.49177951]
[1733242383717,10.49177951,224.67,224.51,10.49177951]
[1733242383921,2.2257,224.59,224.52,3.34050426]
[1733242384116,3.3,224.59,224.5,1.3714]
[1733242384319,3.3,224.59,224.54,2.2262]
[1733242384513,3.3,224.59,224.5,1.3714]
[1733242384718,3.3,224.59,224.51,1.11422469]
[1733242384918,3.3,224.59,224.52,1.11420148]
[1733242385121,3.3,224.59,224.5,1.3714]
[1733242385322,3.3,224.59,224.51,1.11421706]
[1733242385521,3.3,224.59,224.5,1.3714]
[1733242385918,3.3,224.59,224.52,2.2264]
[1733242386419,3.3,224.59,224.49,1.4077]
[1733242386620,3.3,224.59,224.49,3.6344]
[1733242386820,2.2259,224.57,224.49,3.6344]
[1733242387016,3.3,224.59,224.49,1.4077]
[1733242387224,2.2259,224.58,224.5,2.2265]
[1733242387524,3.3,224.59,224.4,17.77675688]
[1733242387721,3.3,224.59,224.42,1.3669]
[1733242388225,16.76597714,224.57,224.42,1.3669]
[1733242388416,2.2263,224.53,224.45,2.2271]
[1733242388722,3.3,224.52,224.45,2.2271]
[1733242389314,3.3,224.52,224.42,1.3669]
[1733242390721,2.2266,224.5,224.42,1.3669]
[1733242391028,3.3,224.52,224.42,1.3669]
[1733242391417,5.5264,224.52,224.42,1.3669]
[1733242391822,3.3,224.52,224.42,1.3669]
[1733242392423,3.3,224.52,224.41,1.4057]
[1733242392618,3.3,224.52,224.37,1.3567]
[1733242393323,2.2267,224.49,224.4,2.2275]
[1733242393522,3.3,224.52,224.4,2.2275]
[1733242394027,3.3,224.52,224.41,2.2274]
[1733242394224,4.6029,224.52,224.37,1.3567]
[1733242394732,2.6898,224.51,224.37,1.3567]
[1733242395427,2.2272,224.44,224.37,1.3567]
[1733242395628,3.3,224.43,224.37,1.3567]
[1733242396534,3.3,224.43,224.38,2.2277]
[1733242396733,3.3,224.43,224.37,1.3567]
[1733242397830,3.3,224.43,224.37,3.5845]
[1733242398033,3.3,224.43,224.37,1.3567]
[1733242398337,3.3,224.43,224.34,1.2875]
[1733242398538,3.3,224.43,224.37,2.2278]
[1733242398835,3.3,224.43,224.34,1.2875]
[1733242399039,3.3,224.43,224.38,2.2277]
[1733242399835,3.3,224.43,224.39,2.2276]
[1733242400333,3.3,224.43,224.34,1.2875]
[1733242400636,3.3,224.43,224.37,2.2278]
[1733242401237,3.3,224.43,224.35,2.228]
[1733242401629,3.3,224.43,224.34,1.2875]
[1733242401934,3.3,224.43,224.37,2.2278]
[1733242402129,3.3,224.43,224.34,1.2875]
[1733242402130,5.5273,224.43,224.34,1.2875]
[1733242402333,5.5273,224.43,224.36,2.2279]
[1733242403043,5.5273,224.43,224.37,2.2279]
[1733242403238,3.3,224.43,224.37,2.2279]
[1733242403839,5.5273,224.43,224.37,2.2279]
[1733242404036,3.3,224.43,224.35,2.228]
[1733242404437,3.3,224.43,224.34,1.2875]
[1733242404644,2.2274,224.42,224.35,2.228]
[1733242405146,3.3,224.43,224.28,18.05387714]
[1733242405353,3.3,224.43,224.28,1.2879]
[1733242405647,10.50224385,224.38,224.28,3.5166]
[1733242405946,10.50224385,224.38,224.28,1.2879]
[1733242406146,2.228,224.36,224.28,1.2879]
[1733242406351,3.3,224.35,224.28,1.2879]
[1733242407152,3.3,224.35,224.27,1.355]
[1733242407646,2.2284,224.32,224.25,2.229]
[1733242408246,3.3,224.35,224.21,13.19984385]
[1733242408247,13.80224385,224.35,224.21,13.19984385]
[1733242408451,2.2285,224.31,224.21,13.19984385]
[1733242408747,2.2285,224.31,224.23,2.2291]
[1733242408951,2.2286,224.3,224.23,2.2291]
[1733242409151,13.80224385,224.35,224.23,2.2291]
[1733242409750,2.2285,224.31,224.23,2.2291]
[1733242409951,13.80224385,224.35,224.21,10.50224385]
[1733242410350,2.2287,224.29,224.22,2.2293]
[1733242410555,13.80224385,224.35,224.21,10.50224385]
[1733242410556,3.32,224.28,224.21,10.50224385]
[1733242410748,10.50224385,224.35,224.21,10.50224385]
[1733242410749,3.32,224.27,224.21,10.50224385]
[1733242410946,3.32,224.27,224.23,2.2292]
[1733242411150,3.32,224.27,224.21,10.50224385]
[1733242411647,3.32,224.27,224.24,10.50224385]
[1733242412047,3.32,224.27,224.25,2.229]
[1733242412250,3.32,224.27,224.21,10.50224385]
[1733242412855,3.32,224.27,224.24,2.2291]
[1733242413250,3.32,224.27,224.21,10.50224385]
[1733242413654,3.32,224.27,224.23,2.2292]
[1733242413855,3.32,224.27,224.21,10.50224385]
[1733242414356,3.32,224.27,224.25,2.229]
[1733242414649,3.32,224.27,224.21,10.50224385]
[1733242415152,3.32,224.27,223.97,23.87411904]
[1733242415153,3.32,224.27,224.05,4.462]
[1733242415356,3.32,224.27,224.13,10.50224385]
[1733242415756,3.32,224.27,224.16,2.2299]
[1733242415951,3.32,224.27,224.13,10.50224385]
[1733242416153,10.50224385,224.26,224.13,10.50224385]
[1733242416550,10.50224385,224.26,224.14,2.2301]
[1733242416749,10.50224385,224.26,224.1,10.50224385]
[1733242417046,2.2294,224.22,224.14,2.2301]
[1733242417252,10.50224385,224.26,224.1,10.50224385]
[1733242417447,10.50224385,224.26,224.11,1.3726]
[1733242417653,10.50224385,224.26,224.16,2.2299]
[1733242417847,3.32,224.27,224.13,10.50224385]
[1733242419049,3.32,224.27,224.16,10.50224385]
[1733242419352,3.3,224.26,224.16,10.50224385]
[1733242419650,3.3,224.26,224.21,2.2294]
[1733242420154,3.3,224.26,224.19,10.50224385]
[1733242421156,3.3,224.26,224.22,2.2293]
[1733242422053,4.0782,224.37,224.17,2.6514]
[1733242422054,10.50224385,224.35,224.17,2.6514]
[1733242422257,3.3,224.34,224.22,10.50224385]
[1733242422455,2.2284,224.32,224.24,2.2291]
[1733242422658,2.2284,224.32,224.2,1.2945]
[1733242422659,10.50224385,224.32,224.2,1.2945]
[1733242423258,10.50224385,224.29,224.17,2.6514]
[1733242423459,10.50224385,224.26,224.13,10.50224385]
[1733242423658,2.2294,224.22,224.13,10.50224385]
[1733242423859,3.3,224.25,224.13,10.50224385]
[1733242424556,3.3,224.25,224.15,2.23]
[1733242424557,2.2294,224.22,224.15,2.23]
[1733242424957,2.2295,224.2,224.13,2.2302]
[1733242425162,10.50224385,224.23,224.08,2.7196]
[1733242425461,2.2297,224.18,224.11,2.2304]
[1733242425662,3.3,224.17,224.08,2.7196]
[1733242425862,10.50224385,224.23,224.08,2.7196]
[1733242425863,3.3,224.16,224.08,2.7196]
[1733242426058,3.3,224.15,224.08,1.414]
[1733242426254,3.3,224.15,224.05,1.3782]
[1733242426456,3.3,224.15,224.07,2.2308]
[1733242426858,3.3,224.15,224.05,1.3782]
[1733242427058,3.3,224.15,224.05,3.6091]
[1733242427255,3.3,224.15,224.05,1.3782]
[1733242428165,2.2302,224.14,224.05,1.3782]
[1733242428367,3.3,224.15,224.04,10.50224385]
[1733242428666,2.2306,224.1,224.02,2.2313]
[1733242428866,2.2306,224.1,224.01,10.50224385]
[1733242429068,2.2306,224.1,224.01,12.73354385]
[1733242429363,2.2306,224.1,224.01,10.50224385]
[1733242429567,2.2305,224.11,224.01,10.50224385]
[1733242429865,11.84284385,224.14,223.99,1.3803]
[1733242430261,11.84284385,224.14,224.01,2.2314]
[1733242430262,2.2307,224.08,224.01,2.2314]
[1733242430465,3.3,224.07,224.01,2.2314]
[1733242431265,3.3,224.07,223.99,1.3803]
[1733242432567,3.3,224.07,223.97,2.28521996]
[1733242432761,5.5309,224.07,223.98,2.2317]
[1733242433959,5.5309,224.07,223.99,2.2315]
[1733242434363,3.3,224.07,223.95,10.52870187]
[1733242434559,3.3,224.07,223.95,12.76070187]
[1733242434864,3.3,224.07,223.95,10.52870187]
[1733242435468,10.52870187,224.06,223.92,10.52870187]
[1733242435761,10.52870187,224.06,223.9,3.9552]
[1733242435762,10.52870187,224.03,223.93,3.34923509]
[1733242435970,10.52870187,224.03,223.93,2.2322]
[1733242436167,10.52870187,224.03,223.89,10.52870187]
[1733242436469,10.52870187,224.03,223.9,2.90432329]
[1733242436661,10.52870187,224.03,223.91,1.11704742]
[1733242436867,10.5362019,224.01,223.92,1.11704742]
[1733242437065,3.3,224.0,223.9,2.2324]
[1733242437369,2.2319,223.97,223.89,2.2326]
[1733242439265,2.2319,223.97,223.9,2.2325]
[1733242439564,2.2318,223.97,223.9,2.2325]
[1733242439964,3.3,224.0,223.9,2.2324]
[1733242440267,5.5315,224.0,223.9,10.5362019]
[1733242440462,1.3204,224.05,223.96,2.2319]
[1733242440669,3.3,224.04,223.91,1.3535]
[1733242440865,2.2314,224.02,223.92,1.11711033]
[1733242441071,2.2314,224.02,223.93,1.11713392]
[1733242441369,2.2314,224.02,223.91,1.3535]
[1733242441568,2.2314,224.02,223.92,1.11713984]
[1733242441769,5.5312,224.04,223.97,2.2318]
[1733242441965,3.28,224.03,223.96,10.5362019]
[1733242442165,10.5362019,224.09,223.96,12.75137766]
[1733242442366,3.28,224.08,224.01,2.2314]
[1733242442776,3.28,224.08,223.97,2.779]
[1733242443072,3.28,224.08,224.02,2.2313]
[1733242443667,3.28,224.08,224.03,2.2312]
[1733242443873,3.28,224.1,224.02,10.5362019]
[1733242444066,3.28,224.11,224.03,1.3846]
[1733242444268,3.28,224.11,224.06,2.2309]
[1733242444970,3.28,224.11,224.03,1.3846]
[1733242445185,3.28,224.11,223.97,2.779]
[1733242445186,10.5362019,224.09,223.97,2.779]
[1733242445566,10.5362019,224.06,223.97,1.4114]
[1733242445771,10.5362019,224.06,223.91,2.7315]
[1733242445968,2.2312,224.04,223.95,2.232]
[1733242446167,3.28,224.03,223.91,4.0577]
[1733242446374,3.28,224.03,223.92,2.90396221]
[1733242446669,3.28,224.03,223.96,2.2319]
[1733242446880,3.28,224.03,223.89,10.5362019]
[1733242447071,3.28,224.03,223.9,2.90437348]
[1733242447272,3.28,224.03,223.94,2.2321]
[1733242447473,3.28,224.03,223.9,2.693]
[1733242447673,3.28,224.03,223.91,2.90430423]
[1733242447872,2.2313,224.02,223.95,2.232]
[1733242448276,3.28,224.03,223.95,2.232]
[1733242448478,3.28,224.03,223.9,2.693]
[1733242448680,3.28,224.03,223.96,2.2319]
[1733242448873,3.28,224.03,223.91,1.3553]
[1733242449079,3.28,224.03,223.93,16.85154342]
[1733242449280,3.28,224.03,223.99,2.2316]
[1733242450178,3.28,224.03,223.96,2.18469346]
[1733242450381,3.28,224.03,223.97,1.11684617]
[1733242450674,3.28,224.03,223.98,1.11684617]
[1733242450880,3.28,224.03,223.96,2.21172566]
[1733242450881,3.28,224.03,223.93,16.85154342]
[1733242451071,3.28,224.05,223.94,5.13734239]
[1733242451278,3.28,224.05,223.95,2.90371526]
[1733242451477,3.28,224.05,223.96,5.13722583]
[1733242451783,1.4243,224.13,224.02,2.2313]
[1733242451784,3.28,224.06,224.02,2.2313]
[1733242452076,3.28,224.06,223.93,16.85154342]
[1733242452280,3.28,224.06,223.94,5.1373136]
[1733242452473,3.28,224.06,223.95,2.90369899]
[1733242452671,3.28,224.06,223.96,1.1168073]
[1733242452980,5.511,224.06,223.99,2.2315]
[1733242453579,3.28,224.06,224.0,2.2315]
[1733242454776,3.28,224.06,223.93,16.85154342]
[1733242454777,3.28,224.06,223.99,2.2316]
[1733242455182,3.28,224.06,223.93,16.85154342]
[1733242455488,3.28,224.06,223.94,2.90389671]
[1733242455685,3.28,224.06,223.91,1.3553]
[1733242455686,17.7878,224.27,223.97,16.85154342]
[1733242455876,2.2303,224.13,223.98,5.1365924]
[1733242456076,4.5711,224.17,223.99,4.22161193]
[1733242456282,4.5711,224.17,223.99,1.3182]
[1733242456578,4.5711,224.17,223.97,17.67749942]
[1733242456886,16.85154342,224.15,223.98,1.11672176]
[1733242457074,16.85154342,224.15,223.97,15.40104342]
[1733242457276,19.09292891,224.15,223.93,16.85154342]
[1733242457480,19.09292891,224.15,223.94,2.90390761]
[1733242457779,19.09292891,224.15,223.95,1.11689549]
[1733242457980,19.09292891,224.15,223.93,16.85154342]
[1733242458286,16.85154342,224.11,223.94,1.11690497]
[1733242458484,3.28,224.1,223.95,1.11690497]
[1733242458684,3.28,224.1,223.93,16.85154342]
[1733242458978,2.2311,224.05,223.98,2.2317]
[1733242459175,2.2311,224.05,223.93,16.85154342]
[1733242459378,2.2311,224.05,223.94,1.11692052]
[1733242459576,2.2311,224.05,223.98,2.2317]
[1733242459784,2.2309,224.06,223.93,16.85154342]
[1733242459985,2.2309,224.06,223.94,1.11692052]
[1733242460279,2.2309,224.06,223.93,16.85154342]
[1733242460280,2.2309,224.06,223.99,2.2316]
[1733242461281,2.2311,224.05,223.93,16.85154342]
[1733242461475,2.2311,224.05,223.98,2.2317]
[1733242461680,2.2311,224.05,223.93,16.85154342]
[1733242461979,2.2309,224.07,224.0,2.2315]
[1733242463386,4.66,224.1,223.93,16.85154342]
[1733242463387,2.231,224.06,223.98,2.2317]
[1733242463582,4.66,224.1,223.93,16.85154342]
[1733242463980,6.0694,224.1,223.93,16.85154342]
[1733242464283,16.85154342,224.07,223.92,1.3694]
[1733242464485,2.2316,224.0,223.94,2.2321]
[1733242464686,3.28,223.99,223.94,2.2321]
[1733242464984,3.28,223.99,223.91,1.3553]
[1733242465182,3.28,223.99,223.92,2.2323]
[1733242465487,3.28,223.99,223.91,1.3553]
[1733242465681,2.2318,223.98,223.91,2.2324]
[1733242466084,3.28,223.99,223.85,18.19324342]
[1733242466583,2.2318,223.98,223.85,18.19324342]
[1733242466982,3.28,223.99,223.85,18.19324342]
[1733242467190,2.2319,223.96,223.89,2.2326]
[1733242467487,3.28,223.99,223.85,16.85154342]
[1733242467681,10.53879801,223.98,223.84,10.53879801]
[1733242467887,11.84799801,223.98,223.84,10.53879801]
[1733242468182,2.2322,223.94,223.87,2.2328]
[1733242468378,2.2322,223.94,223.84,10.53879801]
[1733242468583,11.84799801,223.98,223.85,1.11737681]
[1733242468787,2.2322,223.93,223.84,10.53879801]
[1733242468978,3.28,223.92,223.84,10.53879801]
[1733242469177,3.28,223.92,223.85,1.11737919]
[1733242469382,3.28,223.92,223.81,10.53879801]
[1733242469584,3.28,223.92,223.82,2.90518923]
[1733242469887,3.28,223.92,223.83,1.11738047]
[1733242470083,3.28,223.92,223.81,10.53879801]
[1733242470280,3.28,223.92,223.82,2.90544439]
[1733242470484,3.28,223.92,223.83,1.11747861]
[1733242470684,3.28,223.92,223.84,1.11747861]
[1733242470887,3.28,223.92,223.81,10.53879801]
[1733242471185,3.28,223.92,223.86,2.2329]
[1733242471486,3.28,223.92,223.84,10.53879801]
[1733242471785,3.28,223.92,223.87,10.53879801]
[1733242473089,3.28,223.92,223.91,2.2324]
[1733242473288,2.2317,223.99,223.91,2.2324]
[1733242473481,3.28,223.98,223.91,2.2324]
[1733242473788,2.2318,223.98,223.9,2.2325]
[1733242474081,3.28,223.97,223.9,2.2325]
[1733242475384,5.5119,223.97,223.9,2.2325]
[1733242476485,3.28,223.97,223.87,10.53879801]
[1733242476788,13.81879801,223.97,223.81,10.53879801]
[1733242477182,2.2323,223.92,223.84,2.233]
[1733242477384,13.81879801,223.97,223.84,2.233]
[1733242477385,10.53879801,223.94,223.84,2.233]
[1733242477785,10.53879801,223.94,223.81,10.53879801]
[1733242478788,10.53879801,223.91,223.78,4.1448]
[1733242479087,3.28,223.9,223.78,4.1448]
[1733242479484,2.2328,223.88,223.78,4.1448]
[1733242479688,10.53879801,223.88,223.8,2.2335]
[1733242481089,2.2328,223.87,223.8,2.2335]
[1733242481485,2.2328,223.87,223.77,2.2337]
[1733242481691,2.2328,223.87,223.74,10.53879801]
[1733242481889,10.53879801,223.88,223.74,10.53879801]
[1733242482190,2.233,223.86,223.79,2.2336]
[1733242482784,10.53879801,223.88,223.79,2.2336]
[1733242483186,10.53879801,223.88,223.75,2.234]
[1733242483384,3.28,223.9,223.71,4.1508]
[1733242483385,2.2334,223.81,223.71,13.27799801]
[1733242483583,3.28,223.8,223.71,13.27799801]
[1733242483785,3.28,223.8,223.73,2.2341]
[1733242484388,3.28,223.8,223.56,4.4718]
[1733242484588,3.28,223.8,223.65,10.53879801]
[1733242485190,2.2338,223.78,223.65,10.53879801]
[1733242485391,3.28,223.8,223.65,10.53879801]
[1733242486892,10.53879801,223.81,223.65,10.53879801]
[1733242487086,10.53879801,223.81,223.69,2.2346]
[1733242487087,2.2339,223.77,223.69,2.2346]
[1733242488889,3.28,223.8,223.65,10.53879801]
[1733242489195,3.28,223.8,223.68,10.53879801]
[1733242489395,3.28,223.8,223.68,12.76338548]
[1733242489694,2.2334,223.81,223.68,12.76338548]
[1733242489892,3.28,223.8,223.71,10.53879801]
[1733242490190,3.28,223.79,223.71,10.53879801]
[1733242491092,2.2334,223.82,223.74,10.53879801]
[1733242491093,3.28,223.82,223.74,10.53879801]
[1733242491292,3.28,223.82,223.78,2.2336]
[1733242491497,3.28,223.82,223.75,3.9473]
[1733242491999,3.28,223.82,223.78,2.2336]
[1733242492590,3.28,223.82,223.75,3.9473]
[1733242492591,3.28,223.82,223.76,2.2339]
[1733242492787,3.28,223.82,223.75,3.9473]
[1733242493294,5.5134,223.82,223.75,6.1813]
[1733242493796,3.28,223.82,223.75,6.1813]
[1733242494292,3.28,223.82,223.75,3.9473]
[1733242494594,3.28,223.82,223.76,2.2339]
[1733242494986,2.686,223.93,223.8,10.53879801]
[1733242494987,3.28,223.89,223.8,10.53879801]
[1733242495991,5.5126,223.89,223.8,10.53879801]
[1733242496690,5.5126,223.89,223.82,2.2333]
[1733242497294,3.28,223.89,223.82,2.2333]
[1733242498293,5.5127,223.89,223.82,2.2333]
[1733242499187,3.28,223.89,223.82,2.2333]
[1733242499594,3.28,223.89,223.83,2.2332]
[1733242500194,2.2324,223.91,223.84,2.2331]
[1733242500393,4.0467,224.0,223.83,10.53879801]
[1733242500604,13.81879801,223.99,223.86,10.53879801]
[1733242500794,2.2318,223.98,223.86,10.53879801]
[1733242500994,3.28,223.97,223.86,10.53879801]
[1733242501192,3.28,223.97,223.88,2.2327]
[1733242501496,10.53879801,223.96,223.83,10.53879801]
[1733242501897,10.53879801,223.93,223.75,3.9473]
[1733242502199,10.53879801,223.93,223.79,10.53879801]
[1733242502394,10.53879801,223.93,223.75,3.9473]
[1733242502395,4.0467,224.0,223.82,10.53879801]
[1733242502596,3.26,224.0,223.9,10.53879801]
[1733242502798,3.26,224.0,223.93,10.53879801]
[1733242503302,3.26,224.0,223.95,2.2319]
[1733242503601,3.26,224.0,223.86,3.9924]
[1733242503804,2.2317,223.98,223.91,2.2323]
[1733242503995,3.26,224.0,223.89,10.53879801]
[1733242504891,2.2316,223.99,223.89,10.53879801]
[1733242505103,3.26,224.0,223.89,10.53879801]
[1733242506097,2.2317,223.99,223.92,2.2322]
[1733242506299,3.26,224.0,223.89,10.53879801]
[1733242506699,3.26,224.0,223.93,2.2322]
[1733242507402,5.4916,224.0,223.93,2.2322]
[1733242507602,3.26,224.0,223.93,2.2322]
[1733242507996,5.4915,224.0,223.94,2.2321]
[1733242510097,2.2316,223.99,223.94,2.2321]
[1733242510696,3.26,224.0,223.89,10.53446735]
[1733242510893,3.26,224.0,223.92,10.53446735]
[1733242511303,3.26,224.0,223.97,2.2318]
[1733242511699,3.26,224.0,223.92,10.53446735]
[1733242511897,3.26,224.0,223.96,2.2319]
[1733242513800,1.4099,224.05,223.92,10.53446735]
[1733242514001,48.7311,224.04,223.92,10.53446735]
[1733242514302,3.26,224.03,223.92,10.53446735]
[1733242514505,2.2314,224.02,223.92,10.53446735]
[1733242514709,3.26,224.03,223.92,10.53446735]
[1733242514895,2.2314,224.02,223.96,2.2318]
[1733242515204,13.79446735,224.03,223.92,10.53446735]
[1733242515205,3.26,224.03,223.92,10.53446735]
[1733242515500,13.79446735,224.03,223.92,10.53446735]
[1733242515797,10.53446735,223.97,223.86,1.309]
[1733242516001,2.2323,223.93,223.86,2.2329]
[1733242516197,10.54266699,223.95,223.86,2.2329]
[1733242516395,10.54266699,223.95,223.81,10.54266699]
[1733242517205,3.26,223.96,223.84,10.54266699]
[1733242517399,3.26,223.96,223.87,10.54266699]
[1733242517697,5.492,223.96,223.89,2.2326]
[1733242517902,3.26,223.96,223.87,10.54266699]
[1733242518498,3.26,223.96,223.85,1.4052]
[1733242518804,2.2321,223.95,223.88,2.2327]
[1733242519002,3.26,223.96,223.88,2.2327]
[1733242519201,3.26,223.96,223.85,11.94786699]
[1733242520005,2.2323,223.93,223.85,11.94786699]
[1733242520402,3.26,223.96,223.85,14.18086699]
[1733242520601,2.2324,223.92,223.85,1.4052]
[1733242520806,10.54266699,223.95,223.85,1.4052]
[1733242521205,10.54266699,223.95,223.82,10.54266699]
[1733242521206,2.2326,223.9,223.83,2.2332]
[1733242521404,3.26,223.89,223.83,2.2332]
[1733242522012,3.26,223.89,223.84,2.2331]
[1733242522612,3.26,223.89,223.82,10.54266699]
[1733242522814,3.26,223.89,223.83,2.2332]
[1733242523703,3.26,223.89,223.84,2.2331]
[1733242524507,3.26,223.89,223.83,2.2332]
[1733242527109,3.26,223.89,223.85,2.233]
[1733242527709,3.26,223.89,223.84,2.2331]
[1733242528010,3.26,223.89,223.76,1.3741]
[1733242528208,3.26,223.89,223.79,10.54266699]
[1733242529712,6.74915634,223.89,223.81,6.74915634]
[1733242529917,3.26,223.88,223.81,6.74915634]
[1733242530210,2.2329,223.87,223.81,6.74915634]
[1733242530411,3.26,223.88,223.81,6.74915634]
[1733242530605,3.26,223.88,223.83,6.74915634]
[1733242531005,5.4927,223.88,223.83,6.74915634]
[1733242531511,2.2328,223.87,223.81,2.2334]
[1733242531712,3.26,223.88,223.81,2.2334]
[1733242532110,2.2328,223.87,223.81,2.2334]
[1733242532316,2.2328,223.87,223.79,10.5450656]
[1733242532317,2.2328,223.87,223.8,2.2335]
[1733242532615,2.2331,223.85,223.79,10.5450656]
[1733242532811,3.26,223.88,223.76,1.3741]
[1733242533012,10.5450656,223.87,223.75,2.2339]
[1733242533208,10.5450656,223.87,223.73,10.5450656]
[1733242533415,10.5450656,223.84,223.72,2.2342]
[1733242534716,1.3423,223.86,223.7,10.5450656]
[1733242534717,10.5450656,223.81,223.7,2.2345]
[1733242535015,3.24,223.8,223.7,2.2345]
[1733242535218,2.2339,223.77,223.7,2.2345]
[1733242535510,2.2339,223.77,223.71,2.2344]
[1733242536910,3.24,223.8,223.67,10.5450656]
[1733242537116,3.24,223.8,223.69,2.2345]
[1733242537614,10.5450656,223.78,223.66,1.4252]
[1733242537818,10.5450656,223.78,223.64,10.5450656]
[1733242538120,1.3107,223.77,223.64,10.5450656]
[1733242539021,1.3107,223.77,223.61,13.2903656]
[1733242539022,10.5450656,223.75,223.61,13.2903656]
[1733242539610,2.2345,223.71,223.64,2.235]
[1733242539814,3.24,223.7,223.64,2.235]
[1733242540716,3.24,223.7,223.65,2.235]
[1733242541113,5.4745,223.7,223.61,13.2903656]
[1733242541319,3.24,223.7,223.61,13.2903656]
[1733242541716,5.4745,223.7,223.61,13.2903656]
[1733242542020,5.4745,223.7,223.64,2.235]
[1733242542816,5.4745,223.7,223.63,2.2352]
[1733242543017,2.2348,223.68,223.61,2.7453]
[1733242543221,2.2348,223.68,223.59,1.3024]
[1733242543718,10.5450656,223.69,223.59,3.5379]
[1733242543920,10.5450656,223.69,223.59,2.2355]
[1733242544115,10.5450656,223.69,223.55,10.5450656]
[1733242544415,2.2351,223.65,223.58,2.2356]
[1733242544616,10.5450656,223.63,223.36,2.64165947]
[1733242544925,2.2357,223.59,223.52,2.2363]
[1733242545117,10.5450656,223.57,223.48,1.3933]
[1733242545314,3.24,223.56,223.48,1.3933]
[1733242547718,2.2363,223.53,223.46,2.2369]
[1733242548016,10.5450656,223.51,223.37,1.3862]
[1733242548212,10.5450656,223.51,223.39,10.5450656]
[1733242548820,10.5450656,223.54,223.39,10.5450656]
[1733242549119,10.5450656,223.54,223.43,10.5450656]
[1733242549620,2.2363,223.52,223.45,2.237]
[1733242551518,2.2364,223.51,223.45,2.237]
[1733242552420,2.2364,223.51,223.43,10.5450656]
[1733242552619,10.5450656,223.54,223.4,10.5450656]
[1733242553012,12.7812656,223.54,223.46,2.2369]
[1733242553215,10.5450656,223.54,223.46,2.2369]
[1733242554112,2.2363,223.53,223.4,10.5450656]
[1733242554429,2.2363,223.53,223.42,10.57892063]
[1733242554613,3.9508,223.55,223.42,10.57892063]
[1733242554614,2.2363,223.52,223.42,10.57892063]
[1733242554817,3.9508,223.55,223.44,2.237]
[1733242555119,10.57892063,223.53,223.39,10.57892063]
[1733242555422,2.2366,223.5,223.44,2.237]
[1733242555622,3.24,223.49,223.44,2.237]
[1733242555823,3.24,223.49,223.39,11.90572063]
[1733242557023,3.24,223.49,223.42,2.2373]
[1733242557421,3.24,223.49,223.39,11.90572063]
[1733242557728,3.24,223.5,223.42,10.57892063]
[1733242558116,3.24,223.5,223.39,11.90572063]
[1733242558524,5.4766,223.5,223.41,2.2373]
[1733242558717,3.24,223.5,223.41,2.2373]
[1733242558916,3.24,223.5,223.39,11.90572063]
[1733242559325,3.24,223.5,223.41,2.2373]
[1733242559326,5.4766,223.5,223.41,2.2373]